[Event "Live Chess"]
[Site "Chess.com"]
[Date "2011.02.01"]
[Round "-"]
[White "yogendra077"]
[Black "hipposcottimus"]
[Result "1-0"]
[CurrentPosition "4r2k/p2r3p/6p1/4p3/1p6/1P3PP1/4R2P/B5K1 b - -"]
[Timezone "UTC"]
[ECO "A10"]
[ECOUrl "https://www.chess.com/openings/English-Opening-Jaenisch-Gambit"]
[UTCDate "2011.02.01"]
[UTCTime "05:57:41"]
[WhiteElo "1891"]
[BlackElo "1757"]
[TimeControl "60"]
[Termination "yogendra077 won on time"]
[StartTime "05:57:41"]
[EndDate "2011.02.01"]
[EndTime "05:59:59"]
[Link "https://www.chess.com/game/live/93542404"]

1. c4 {[%clk 0:01:00]} 1... b5 {[%clk 0:01:00]} 2. Nc3 {[%clk 0:00:59.9]} 2... bxc4 {[%clk 0:00:58.7]} 3. e3 {[%clk 0:00:58.6]} 3... Ba6 {[%clk 0:00:58.4]} 4. e4 {[%clk 0:00:57.4]} 4... e5 {[%clk 0:00:57.9]} 5. Nf3 {[%clk 0:00:56.7]} 5... d6 {[%clk 0:00:57.1]} 6. Bd3 {[%clk 0:00:55.9]} 6... Nf6 {[%clk 0:00:56.8]} 7. Be2 {[%clk 0:00:54.8]} 7... Be7 {[%clk 0:00:56.4]} 8. O-O {[%clk 0:00:53.2]} 8... O-O {[%clk 0:00:56.1]} 9. d3 {[%clk 0:00:51.5]} 9... c5 {[%clk 0:00:55.8]} 10. dxc4 {[%clk 0:00:50.1]} 10... Nc6 {[%clk 0:00:55.5]} 11. Nd5 {[%clk 0:00:49.2]} 11... Nxe4 {[%clk 0:00:54.3]} 12. Bd3 {[%clk 0:00:45.9]} 12... Nf6 {[%clk 0:00:50.3]} 13. Bb1 {[%clk 0:00:45.4]} 13... Nxd5 {[%clk 0:00:49.2]} 14. Qd3 {[%clk 0:00:40.6]} 14... Nf6 {[%clk 0:00:44.2]} 15. Ng5 {[%clk 0:00:35.9]} 15... Nb4 {[%clk 0:00:39.3]} 16. Qf5 {[%clk 0:00:31.8]} 16... g6 {[%clk 0:00:37.3]} 17. Qh3 {[%clk 0:00:24.9]} 17... Bxc4 {[%clk 0:00:35.4]} 18. a3 {[%clk 0:00:23.5]} 18... Be6 {[%clk 0:00:28]} 19. Nxe6 {[%clk 0:00:22]} 19... fxe6 {[%clk 0:00:25.2]} 20. axb4 {[%clk 0:00:21.2]} 20... cxb4 {[%clk 0:00:23.5]} 21. b3 {[%clk 0:00:20]} 21... Qb6 {[%clk 0:00:21.6]} 22. Bb2 {[%clk 0:00:18.7]} 22... Qc5 {[%clk 0:00:19.7]} 23. Bc2 {[%clk 0:00:15.9]} 23... Qd5 {[%clk 0:00:19.1]} 24. Rad1 {[%clk 0:00:15]} 24... Qb5 {[%clk 0:00:16.8]} 25. Qf3 {[%clk 0:00:14.1]} 25... Rac8 {[%clk 0:00:15.7]} 26. Qh3 {[%clk 0:00:13.3]} 26... Rxc2 {[%clk 0:00:14.6]} 27. Qxe6+ {[%clk 0:00:12.1]} 27... Kh8 {[%clk 0:00:13]} 28. Qxe7 {[%clk 0:00:11.5]} 28... Qe8 {[%clk 0:00:09.9]} 29. Qxe8 {[%clk 0:00:10.2]} 29... Rxe8 {[%clk 0:00:09.6]} 30. Ba1 {[%clk 0:00:09.1]} 30... Rcc8 {[%clk 0:00:08.8]} 31. f3 {[%clk 0:00:08.5]} 31... Rcd8 {[%clk 0:00:08.5]} 32. Rd2 {[%clk 0:00:07.5]} 32... d5 {[%clk 0:00:08.2]} 33. Rfd1 {[%clk 0:00:07.4]} 33... d4 {[%clk 0:00:07.9]} 34. Rd3 {[%clk 0:00:05.2]} 34... Nd5 {[%clk 0:00:07.1]} 35. R3d2 {[%clk 0:00:04]} 35... Nf4 {[%clk 0:00:06.7]} 36. Rf2 {[%clk 0:00:02.8]} 36... d3 {[%clk 0:00:04.3]} 37. g3 {[%clk 0:00:02.7]} 37... Ne2+ {[%clk 0:00:03.2]} 38. Rxe2 {[%clk 0:00:01.9]} 38... dxe2 {[%clk 0:00:01.6]} 39. Re1 {[%clk 0:00:01.8]} 39... Rd7 {[%clk 0:00:00.2]} 40. Rxe2 {[%clk 0:00:01.7]} 1-0

[Event "Live Chess"]
[Site "Chess.com"]
[Date "2011.02.01"]
[Round "-"]
[White "hipposcottimus"]
[Black "yogendra077"]
[Result "0-1"]
[CurrentPosition "2k5/pb1p4/6p1/2p1p3/2P1P2P/3P1NN1/1q3rPK/8 w - -"]
[Timezone "UTC"]
[ECO "B20"]
[ECOUrl "https://www.chess.com/openings/Sicilian-Defense"]
[UTCDate "2011.02.01"]
[UTCTime "05:54:41"]
[WhiteElo "1762"]
[BlackElo "1886"]
[TimeControl "60"]
[Termination "yogendra077 won on time"]
[StartTime "05:54:41"]
[EndDate "2011.02.01"]
[EndTime "05:56:54"]
[Link "https://www.chess.com/game/live/93541829"]

1. e4 {[%clk 0:01:00]} 1... c5 {[%clk 0:01:00]} 2. Bb5 {[%clk 0:00:58.1]} 2... Nc6 {[%clk 0:00:59.9]} 3. Bxc6 {[%clk 0:00:57.5]} 3... bxc6 {[%clk 0:00:59.8]} 4. c4 {[%clk 0:00:57.2]} 4... e5 {[%clk 0:00:59.7]} 5. d3 {[%clk 0:00:56.9]} 5... Nf6 {[%clk 0:00:59.6]} 6. Nc3 {[%clk 0:00:56.6]} 6... g6 {[%clk 0:00:59.5]} 7. f4 {[%clk 0:00:56]} 7... Bg7 {[%clk 0:00:59.4]} 8. fxe5 {[%clk 0:00:55]} 8... Ng8 {[%clk 0:00:57.2]} 9. Nf3 {[%clk 0:00:54.6]} 9... Qe7 {[%clk 0:00:55.3]} 10. Bf4 {[%clk 0:00:54.1]} 10... f6 {[%clk 0:00:50.7]} 11. O-O {[%clk 0:00:51.6]} 11... fxe5 {[%clk 0:00:49.3]} 12. Bg5 {[%clk 0:00:51.3]} 12... Bf6 {[%clk 0:00:48]} 13. Qd2 {[%clk 0:00:49]} 13... Bxg5 {[%clk 0:00:47.2]} 14. Nxg5 {[%clk 0:00:48.7]} 14... Bb7 {[%clk 0:00:43.4]} 15. Rf7 {[%clk 0:00:48.2]} 15... Qd6 {[%clk 0:00:37.7]} 16. Raf1 {[%clk 0:00:45.3]} 16... O-O-O {[%clk 0:00:36.3]} 17. a3 {[%clk 0:00:39.6]} 17... Qd4+ {[%clk 0:00:35.4]} 18. Kh1 {[%clk 0:00:37.7]} 18... Nh6 {[%clk 0:00:35.3]} 19. Nxh7 {[%clk 0:00:34.1]} 19... Ng4 {[%clk 0:00:30]} 20. h3 {[%clk 0:00:25.1]} 20... Ne3 {[%clk 0:00:27.3]} 21. R1f2 {[%clk 0:00:21.2]} 21... Qd6 {[%clk 0:00:18.9]} 22. b4 {[%clk 0:00:20.3]} 22... cxb4 {[%clk 0:00:17.8]} 23. axb4 {[%clk 0:00:19.7]} 23... Qxb4 {[%clk 0:00:16.7]} 24. Qxe3 {[%clk 0:00:19]} 24... Qb1+ {[%clk 0:00:15.7]} 25. Rf1 {[%clk 0:00:17.7]} 25... Qb4 {[%clk 0:00:14.8]} 26. Ne2 {[%clk 0:00:17.2]} 26... Qd6 {[%clk 0:00:14.3]} 27. Ng3 {[%clk 0:00:16.6]} 27... c5 {[%clk 0:00:13.8]} 28. Ng5 {[%clk 0:00:13.9]} 28... Qd4 {[%clk 0:00:13]} 29. Rf8 {[%clk 0:00:09.6]} 29... Rhxf8 {[%clk 0:00:10.5]} 30. Rxf8 {[%clk 0:00:09.3]} 30... Rxf8 {[%clk 0:00:09.6]} 31. Nh7 {[%clk 0:00:08.8]} 31... Rf7 {[%clk 0:00:08.2]} 32. Kh2 {[%clk 0:00:07.9]} 32... Qxe3 {[%clk 0:00:07.1]} 33. Ng5 {[%clk 0:00:04.2]} 33... Rf2 {[%clk 0:00:06.3]} 34. Nf3 {[%clk 0:00:02]} 34... Qc1 {[%clk 0:00:04.7]} 35. h4 {[%clk 0:00:00.9]} 35... Qb2 {[%clk 0:00:04.2]} 0-1

[Event "Live Chess"]
[Site "Chess.com"]
[Date "2011.02.01"]
[Round "-"]
[White "hipposcottimus"]
[Black "doing"]
[Result "1-0"]
[CurrentPosition "r3kb2/pppqpp2/2np4/3n4/3P4/3B2Br/PPP1Q1RP/2KR4 b q -"]
[Timezone "UTC"]
[ECO "B07"]
[ECOUrl "https://www.chess.com/openings/Pirc-Defense"]
[UTCDate "2011.02.01"]
[UTCTime "05:52:49"]
[WhiteElo "1768"]
[BlackElo "1782"]
[TimeControl "60"]
[Termination "hipposcottimus won by resignation"]
[StartTime "05:52:49"]
[EndDate "2011.02.01"]
[EndTime "05:54:05"]
[Link "https://www.chess.com/game/live/93541540"]

1. e4 {[%clk 0:01:00]} 1... d6 {[%clk 0:01:00]} 2. Ne2 {[%clk 0:00:59.4]} 2... Nf6 {[%clk 0:00:56.4]} 3. d4 {[%clk 0:00:59.1]} 3... Nxe4 {[%clk 0:00:53.5]} 4. f3 {[%clk 0:00:58.9]} 4... Nf6 {[%clk 0:00:50.5]} 5. Ng3 {[%clk 0:00:58.7]} 5... h5 {[%clk 0:00:47.4]} 6. Bc4 {[%clk 0:00:58.4]} 6... h4 {[%clk 0:00:44.2]} 7. Ne2 {[%clk 0:00:58]} 7... h3 {[%clk 0:00:41.4]} 8. Bf4 {[%clk 0:00:57.6]} 8... hxg2 {[%clk 0:00:37.9]} 9. Rg1 {[%clk 0:00:57.3]} 9... Bh3 {[%clk 0:00:34.3]} 10. Bg3 {[%clk 0:00:55.2]} 10... g5 {[%clk 0:00:31.1]} 11. Bd3 {[%clk 0:00:53]} 11... Nc6 {[%clk 0:00:27.7]} 12. Nd2 {[%clk 0:00:52.1]} 12... Nd5 {[%clk 0:00:24.3]} 13. Ne4 {[%clk 0:00:51.8]} 13... g4 {[%clk 0:00:21.1]} 14. Ng5 {[%clk 0:00:49.9]} 14... gxf3 {[%clk 0:00:17.9]} 15. Nxh3 {[%clk 0:00:49.1]} 15... fxe2 {[%clk 0:00:14.4]} 16. Qxe2 {[%clk 0:00:47.7]} 16... Rxh3 {[%clk 0:00:10.8]} 17. Rxg2 {[%clk 0:00:46.2]} 17... Qd7 {[%clk 0:00:07.8]} 18. O-O-O {[%clk 0:00:45.8]} 1-0

[Event "Live Chess"]
[Site "Chess.com"]
[Date "2011.02.01"]
[Round "-"]
[White "hipposcottimus"]
[Black "smpcorporation"]
[Result "1-0"]
[CurrentPosition "4rrk1/p4q1p/1p3ppN/8/2P5/1P4Q1/P5PP/2R2RK1 b - -"]
[Timezone "UTC"]
[ECO "C40"]
[ECOUrl "https://www.chess.com/openings/Kings-Pawn-Opening-Kings-Knight-Variation"]
[UTCDate "2011.02.01"]
[UTCTime "05:50:27"]
[WhiteElo "1768"]
[BlackElo "1476"]
[TimeControl "60"]
[Termination "hipposcottimus won on time"]
[StartTime "05:50:27"]
[EndDate "2011.02.01"]
[EndTime "05:52:23"]
[Link "https://www.chess.com/game/live/93541084"]

1. e4 {[%clk 0:01:00]} 1... e5 {[%clk 0:01:00]} 2. Nf3 {[%clk 0:00:59.7]} 2... Be7 {[%clk 0:00:58.8]} 3. Bc4 {[%clk 0:00:59.3]} 3... Nf6 {[%clk 0:00:58.5]} 4. d4 {[%clk 0:00:58.6]} 4... Nc6 {[%clk 0:00:53.3]} 5. d5 {[%clk 0:00:54.8]} 5... Nd4 {[%clk 0:00:52.1]} 6. Nxd4 {[%clk 0:00:53.4]} 6... exd4 {[%clk 0:00:51.5]} 7. Qxd4 {[%clk 0:00:53]} 7... O-O {[%clk 0:00:51]} 8. Qe3 {[%clk 0:00:51.8]} 8... d6 {[%clk 0:00:49.7]} 9. O-O {[%clk 0:00:51.3]} 9... Bd7 {[%clk 0:00:47.9]} 10. f3 {[%clk 0:00:50.6]} 10... Qe8 {[%clk 0:00:47.1]} 11. Be2 {[%clk 0:00:49.8]} 11... Bb5 {[%clk 0:00:45.5]} 12. c4 {[%clk 0:00:48.8]} 12... Bd7 {[%clk 0:00:40.2]} 13. Nc3 {[%clk 0:00:48.5]} 13... c5 {[%clk 0:00:39]} 14. f4 {[%clk 0:00:47.8]} 14... Bg4 {[%clk 0:00:27.6]} 15. e5 {[%clk 0:00:45.1]} 15... Bxe2 {[%clk 0:00:25.7]} 16. Nxe2 {[%clk 0:00:44.8]} 16... Nd7 {[%clk 0:00:23.1]} 17. Ng3 {[%clk 0:00:37.4]} 17... dxe5 {[%clk 0:00:22]} 18. fxe5 {[%clk 0:00:37.1]} 18... f6 {[%clk 0:00:20.2]} 19. d6 {[%clk 0:00:36.2]} 19... Bd8 {[%clk 0:00:18.2]} 20. e6 {[%clk 0:00:35.1]} 20... Ne5 {[%clk 0:00:16.2]} 21. e7 {[%clk 0:00:30.9]} 21... Bxe7 {[%clk 0:00:15.5]} 22. dxe7 {[%clk 0:00:28.9]} 22... Qxe7 {[%clk 0:00:15]} 23. Nf5 {[%clk 0:00:27.6]} 23... Qf7 {[%clk 0:00:12.8]} 24. Qxc5 {[%clk 0:00:25.7]} 24... Rac8 {[%clk 0:00:10.1]} 25. Qf2 {[%clk 0:00:24.7]} 25... b6 {[%clk 0:00:08.9]} 26. b3 {[%clk 0:00:24]} 26... Nd3 {[%clk 0:00:04.9]} 27. Qf3 {[%clk 0:00:22.1]} 27... Nxc1 {[%clk 0:00:03.9]} 28. Raxc1 {[%clk 0:00:21.2]} 28... Rce8 {[%clk 0:00:03.1]} 29. Qg3 {[%clk 0:00:19.7]} 29... g6 {[%clk 0:00:00.8]} 30. Nh6+ {[%clk 0:00:18.4]} 1-0

[Event "Live Chess"]
[Site "Chess.com"]
[Date "2011.02.01"]
[Round "-"]
[White "smpcorporation"]
[Black "hipposcottimus"]
[Result "0-1"]
[CurrentPosition "5q1k/p6p/2Q3p1/3p4/3Pp3/2Pbb3/P2r2PP/R5K1 w - -"]
[Timezone "UTC"]
[ECO "A00"]
[ECOUrl "https://www.chess.com/openings/Vant-Kruijs-Opening-1...e5-2.Bc4"]
[UTCDate "2011.02.01"]
[UTCTime "05:48:27"]
[WhiteElo "1479"]
[BlackElo "1765"]
[TimeControl "60"]
[Termination "hipposcottimus won on time"]
[StartTime "05:48:27"]
[EndDate "2011.02.01"]
[EndTime "05:50:13"]
[Link "https://www.chess.com/game/live/93540707"]

1. e3 {[%clk 0:01:00]} 1... e5 {[%clk 0:01:00]} 2. Bc4 {[%clk 0:00:59.7]} 2... d5 {[%clk 0:00:59.3]} 3. Be2 {[%clk 0:00:57.8]} 3... c5 {[%clk 0:00:56.8]} 4. d4 {[%clk 0:00:57.7]} 4... cxd4 {[%clk 0:00:54.8]} 5. exd4 {[%clk 0:00:57.3]} 5... e4 {[%clk 0:00:54.2]} 6. Be3 {[%clk 0:00:54.2]} 6... Nc6 {[%clk 0:00:53.9]} 7. Nd2 {[%clk 0:00:53.1]} 7... f5 {[%clk 0:00:53.4]} 8. f3 {[%clk 0:00:50.5]} 8... Nf6 {[%clk 0:00:53]} 9. fxe4 {[%clk 0:00:49.3]} 9... fxe4 {[%clk 0:00:50.6]} 10. Bh5+ {[%clk 0:00:47.9]} 10... g6 {[%clk 0:00:49.7]} 11. Be2 {[%clk 0:00:45.5]} 11... Bg7 {[%clk 0:00:49]} 12. Bb5 {[%clk 0:00:42.4]} 12... O-O {[%clk 0:00:48.1]} 13. Bxc6 {[%clk 0:00:40.8]} 13... bxc6 {[%clk 0:00:47.9]} 14. c3 {[%clk 0:00:39.8]} 14... Ba6 {[%clk 0:00:47.4]} 15. Ne2 {[%clk 0:00:39.5]} 15... Bd3 {[%clk 0:00:46.6]} 16. O-O {[%clk 0:00:37.5]} 16... Ng4 {[%clk 0:00:46.2]} 17. Rxf8+ {[%clk 0:00:35.2]} 17... Qxf8 {[%clk 0:00:45.9]} 18. Qf1 {[%clk 0:00:31.6]} 18... Bf6 {[%clk 0:00:42.8]} 19. Qe1 {[%clk 0:00:20]} 19... Rb8 {[%clk 0:00:42.4]} 20. Nf1 {[%clk 0:00:18.1]} 20... Rxb2 {[%clk 0:00:40.1]} 21. Nf4 {[%clk 0:00:15.9]} 21... Bg5 {[%clk 0:00:35.4]} 22. Nd2 {[%clk 0:00:13]} 22... Nxe3 {[%clk 0:00:30.6]} 23. Qxe3 {[%clk 0:00:10.5]} 23... Bxf4 {[%clk 0:00:30.3]} 24. Qh3 {[%clk 0:00:07.5]} 24... Rxd2 {[%clk 0:00:29]} 25. Qe6+ {[%clk 0:00:04.5]} 25... Kh8 {[%clk 0:00:27.5]} 26. Qxc6 {[%clk 0:00:00.1]} 26... Be3+ {[%clk 0:00:27]} 0-1

[Event "Live Chess"]
[Site "Chess.com"]
[Date "2011.02.01"]
[Round "-"]
[White "hipposcottimus"]
[Black "smpcorporation"]
[Result "1-0"]
[CurrentPosition "r2q1rk1/pb1pnp1Q/1pnb2p1/3N2N1/2B1P3/8/PP3PPP/R1B1K2R b KQ -"]
[Timezone "UTC"]
[ECO "B00"]
[ECOUrl "https://www.chess.com/openings/Owens-Defense-2.d4-Bb7"]
[UTCDate "2011.02.01"]
[UTCTime "05:47:34"]
[WhiteElo "1762"]
[BlackElo "1482"]
[TimeControl "60"]
[Termination "hipposcottimus won by checkmate"]
[StartTime "05:47:34"]
[EndDate "2011.02.01"]
[EndTime "05:48:18"]
[Link "https://www.chess.com/game/live/93540519"]

1. e4 {[%clk 0:01:00]} 1... b6 {[%clk 0:01:00]} 2. d4 {[%clk 0:00:58]} 2... Bb7 {[%clk 0:00:58.4]} 3. d5 {[%clk 0:00:57.7]} 3... c6 {[%clk 0:00:55.4]} 4. c4 {[%clk 0:00:57.3]} 4... cxd5 {[%clk 0:00:54.2]} 5. cxd5 {[%clk 0:00:56.9]} 5... e6 {[%clk 0:00:53.1]} 6. Nc3 {[%clk 0:00:56.7]} 6... exd5 {[%clk 0:00:52]} 7. Nxd5 {[%clk 0:00:55.7]} 7... Bd6 {[%clk 0:00:51.2]} 8. Nf3 {[%clk 0:00:50]} 8... Ne7 {[%clk 0:00:50]} 9. Bc4 {[%clk 0:00:47.9]} 9... O-O {[%clk 0:00:48.7]} 10. Ng5 {[%clk 0:00:44.6]} 10... Nbc6 {[%clk 0:00:42]} 11. Qh5 {[%clk 0:00:43.1]} 11... g6 {[%clk 0:00:40.4]} 12. Qxh7# {[%clk 0:00:41.5]} 1-0

[Event "Live Chess"]
[Site "Chess.com"]
[Date "2011.02.01"]
[Round "-"]
[White "doing"]
[Black "hipposcottimus"]
[Result "0-1"]
[CurrentPosition "r4rk1/3N2pp/1q2p3/3p1p2/3P4/3nP3/3N1PPP/1R2K2R w K -"]
[Timezone "UTC"]
[ECO "D00"]
[ECOUrl "https://www.chess.com/openings/Queens-Pawn-Opening-1...d5-2.e3"]
[UTCDate "2011.02.01"]
[UTCTime "05:46:12"]
[WhiteElo "1782"]
[BlackElo "1759"]
[TimeControl "60"]
[Termination "hipposcottimus won by resignation"]
[StartTime "05:46:12"]
[EndDate "2011.02.01"]
[EndTime "05:47:17"]
[Link "https://www.chess.com/game/live/93540204"]

1. d4 {[%clk 0:01:00]} 1... d5 {[%clk 0:01:00]} 2. e3 {[%clk 0:00:59.8]} 2... c6 {[%clk 0:00:59.7]} 3. Nf3 {[%clk 0:00:59.2]} 3... e6 {[%clk 0:00:59.1]} 4. c4 {[%clk 0:00:59.1]} 4... Bb4+ {[%clk 0:00:58.3]} 5. Bd2 {[%clk 0:00:57]} 5... Bxd2+ {[%clk 0:00:58]} 6. Nbxd2 {[%clk 0:00:56.8]} 6... Ne7 {[%clk 0:00:55.5]} 7. cxd5 {[%clk 0:00:56.7]} 7... cxd5 {[%clk 0:00:54.3]} 8. a3 {[%clk 0:00:56]} 8... O-O {[%clk 0:00:53.5]} 9. Bb5 {[%clk 0:00:55.5]} 9... f5 {[%clk 0:00:53.3]} 10. b4 {[%clk 0:00:54.7]} 10... a6 {[%clk 0:00:51.9]} 11. Bd3 {[%clk 0:00:53.6]} 11... b5 {[%clk 0:00:50.4]} 12. a4 {[%clk 0:00:51.7]} 12... Bd7 {[%clk 0:00:47.5]} 13. axb5 {[%clk 0:00:50.5]} 13... Qb6 {[%clk 0:00:43.1]} 14. bxa6 {[%clk 0:00:49.2]} 14... Nxa6 {[%clk 0:00:42]} 15. Qb3 {[%clk 0:00:45.2]} 15... Nxb4 {[%clk 0:00:40.2]} 16. Rb1 {[%clk 0:00:40.8]} 16... Nec6 {[%clk 0:00:39.6]} 17. Ne5 {[%clk 0:00:38.1]} 17... Nxd3+ {[%clk 0:00:38.6]} 18. Qxd3 {[%clk 0:00:36.2]} 18... Nb4 {[%clk 0:00:33.1]} 19. Nxd7 {[%clk 0:00:33.6]} 19... Nxd3+ {[%clk 0:00:31.8]} 0-1

[Event "Live Chess"]
[Site "Chess.com"]
[Date "2011.02.01"]
[Round "-"]
[White "Chuluut"]
[Black "hipposcottimus"]
[Result "0-1"]
[CurrentPosition "7k/1p3rpp/p7/5p2/P3nP2/4P2P/3r2q1/1R2QRK1 w - -"]
[Timezone "UTC"]
[ECO "D31"]
[ECOUrl "https://www.chess.com/openings/Queens-Gambit-Declined-Semi-Slav-Defense-Accelerated-Move-Order"]
[UTCDate "2011.02.01"]
[UTCTime "05:43:28"]
[WhiteElo "1705"]
[BlackElo "1759"]
[TimeControl "60"]
[Termination "hipposcottimus won by checkmate"]
[StartTime "05:43:28"]
[EndDate "2011.02.01"]
[EndTime "05:45:39"]
[Link "https://www.chess.com/game/live/93539625"]

1. d4 {[%clk 0:01:00]} 1... d5 {[%clk 0:01:00]} 2. c4 {[%clk 0:00:59.7]} 2... c6 {[%clk 0:00:59.7]} 3. Nc3 {[%clk 0:00:59.3]} 3... e6 {[%clk 0:00:58.8]} 4. e3 {[%clk 0:00:59.1]} 4... Bb4 {[%clk 0:00:56.6]} 5. Nf3 {[%clk 0:00:58.7]} 5... Bxc3+ {[%clk 0:00:55.8]} 6. bxc3 {[%clk 0:00:57.8]} 6... Nf6 {[%clk 0:00:55.6]} 7. cxd5 {[%clk 0:00:57.3]} 7... cxd5 {[%clk 0:00:55]} 8. c4 {[%clk 0:00:55.6]} 8... Nc6 {[%clk 0:00:54.2]} 9. cxd5 {[%clk 0:00:54.9]} 9... Qxd5 {[%clk 0:00:53.9]} 10. Be2 {[%clk 0:00:53.3]} 10... Qa5+ {[%clk 0:00:53.4]} 11. Bd2 {[%clk 0:00:52.3]} 11... Qd8 {[%clk 0:00:53.1]} 12. O-O {[%clk 0:00:51.4]} 12... O-O {[%clk 0:00:52.8]} 13. Bb5 {[%clk 0:00:51]} 13... Ne4 {[%clk 0:00:52.5]} 14. Bc1 {[%clk 0:00:47.5]} 14... Ne7 {[%clk 0:00:50.2]} 15. Bb2 {[%clk 0:00:45.8]} 15... f5 {[%clk 0:00:48.6]} 16. Bd3 {[%clk 0:00:44.1]} 16... Qd5 {[%clk 0:00:45.3]} 17. a3 {[%clk 0:00:42]} 17... Bd7 {[%clk 0:00:43.1]} 18. Rb1 {[%clk 0:00:41]} 18... a6 {[%clk 0:00:42.8]} 19. Ne5 {[%clk 0:00:38.6]} 19... Bb5 {[%clk 0:00:41.8]} 20. Bxb5 {[%clk 0:00:36.6]} 20... Qxb5 {[%clk 0:00:39.6]} 21. f3 {[%clk 0:00:34]} 21... Nd6 {[%clk 0:00:36.6]} 22. f4 {[%clk 0:00:28.2]} 22... Qe8 {[%clk 0:00:35.4]} 23. a4 {[%clk 0:00:25.6]} 23... Ne4 {[%clk 0:00:34.5]} 24. Ba3 {[%clk 0:00:24.1]} 24... Rf6 {[%clk 0:00:30.5]} 25. d5 {[%clk 0:00:22.2]} 25... exd5 {[%clk 0:00:25.5]} 26. Bxe7 {[%clk 0:00:21.2]} 26... Qxe7 {[%clk 0:00:24.4]} 27. Qxd5+ {[%clk 0:00:20.5]} 27... Kh8 {[%clk 0:00:22.3]} 28. Nf7+ {[%clk 0:00:17.5]} 28... Rxf7 {[%clk 0:00:19.8]} 29. Qd4 {[%clk 0:00:14.2]} 29... Rd8 {[%clk 0:00:18.6]} 30. Qc3 {[%clk 0:00:12.2]} 30... Rd2 {[%clk 0:00:16.6]} 31. Qc1 {[%clk 0:00:09.3]} 31... Qh4 {[%clk 0:00:09.9]} 32. Qe1 {[%clk 0:00:08.2]} 32... Qg4 {[%clk 0:00:06.2]} 33. h3 {[%clk 0:00:02.3]} 33... Qxg2# {[%clk 0:00:03.8]} 0-1

[Event "Live Chess"]
[Site "Chess.com"]
[Date "2011.02.01"]
[Round "-"]
[White "hipposcottimus"]
[Black "doing"]
[Result "1-0"]
[CurrentPosition "8/5pk1/8/1p1B1Pn1/p7/P1PKR3/1r4PP/8 b - -"]
[Timezone "UTC"]
[ECO "C42"]
[ECOUrl "https://www.chess.com/openings/Petrovs-Defense-Urusov-Gambit"]
[UTCDate "2011.02.01"]
[UTCTime "05:40:45"]
[WhiteElo "1752"]
[BlackElo "1782"]
[TimeControl "60"]
[Termination "hipposcottimus won on time"]
[StartTime "05:40:45"]
[EndDate "2011.02.01"]
[EndTime "05:42:59"]
[Link "https://www.chess.com/game/live/93539031"]

1. e4 {[%clk 0:01:00]} 1... e5 {[%clk 0:01:00]} 2. Nf3 {[%clk 0:00:59.5]} 2... Nf6 {[%clk 0:00:59.1]} 3. Bc4 {[%clk 0:00:58.6]} 3... Bd6 {[%clk 0:00:56.6]} 4. d3 {[%clk 0:00:56.2]} 4... O-O {[%clk 0:00:55.5]} 5. Nc3 {[%clk 0:00:54.8]} 5... a6 {[%clk 0:00:53.4]} 6. Bg5 {[%clk 0:00:54.4]} 6... Be7 {[%clk 0:00:51.6]} 7. Bb3 {[%clk 0:00:53.9]} 7... d6 {[%clk 0:00:49.9]} 8. d4 {[%clk 0:00:52.8]} 8... h6 {[%clk 0:00:49.3]} 9. Bxf6 {[%clk 0:00:50.7]} 9... Bxf6 {[%clk 0:00:48.4]} 10. dxe5 {[%clk 0:00:50.4]} 10... dxe5 {[%clk 0:00:46.9]} 11. O-O {[%clk 0:00:50.1]} 11... Qxd1 {[%clk 0:00:45.7]} 12. Raxd1 {[%clk 0:00:49.8]} 12... Bg4 {[%clk 0:00:44.9]} 13. Rd3 {[%clk 0:00:48.5]} 13... Bxf3 {[%clk 0:00:44.1]} 14. Rxf3 {[%clk 0:00:48.3]} 14... c6 {[%clk 0:00:43.4]} 15. Re3 {[%clk 0:00:47.5]} 15... b5 {[%clk 0:00:41.8]} 16. f4 {[%clk 0:00:46.7]} 16... Re8 {[%clk 0:00:39.8]} 17. f5 {[%clk 0:00:44.6]} 17... a5 {[%clk 0:00:38.3]} 18. a3 {[%clk 0:00:42.4]} 18... a4 {[%clk 0:00:37.5]} 19. Ba2 {[%clk 0:00:41.8]} 19... Nd7 {[%clk 0:00:36.3]} 20. Ne2 {[%clk 0:00:41.2]} 20... Nc5 {[%clk 0:00:35.2]} 21. Ng3 {[%clk 0:00:39]} 21... Rad8 {[%clk 0:00:34]} 22. Nh5 {[%clk 0:00:37.5]} 22... Nd7 {[%clk 0:00:30.1]} 23. Rc3 {[%clk 0:00:33.6]} 23... Rc8 {[%clk 0:00:28.3]} 24. Rd3 {[%clk 0:00:33.3]} 24... Rcd8 {[%clk 0:00:26.9]} 25. Rd6 {[%clk 0:00:32.6]} 25... Nc5 {[%clk 0:00:24.8]} 26. Rxc6 {[%clk 0:00:29.7]} 26... Nxe4 {[%clk 0:00:20.7]} 27. c3 {[%clk 0:00:23.5]} 27... Nd2 {[%clk 0:00:19.1]} 28. Rf2 {[%clk 0:00:20.1]} 28... e4 {[%clk 0:00:17.5]} 29. Nxf6+ {[%clk 0:00:18.6]} 29... gxf6 {[%clk 0:00:16.5]} 30. Rxf6 {[%clk 0:00:18.3]} 30... e3 {[%clk 0:00:13.9]} 31. Re2 {[%clk 0:00:16.5]} 31... Ne4 {[%clk 0:00:10.1]} 32. Rxh6 {[%clk 0:00:15.2]} 32... Kg7 {[%clk 0:00:07]} 33. Rh3 {[%clk 0:00:13.8]} 33... Ng5 {[%clk 0:00:05]} 34. Rhxe3 {[%clk 0:00:13]} 34... Rxe3 {[%clk 0:00:03.4]} 35. Rxe3 {[%clk 0:00:12.7]} 35... Rd1+ {[%clk 0:00:02.7]} 36. Kf2 {[%clk 0:00:10.7]} 36... Rd2+ {[%clk 0:00:02.6]} 37. Ke1 {[%clk 0:00:09.4]} 37... Rxb2 {[%clk 0:00:02]} 38. Bd5 {[%clk 0:00:07.1]} 38... Rb1+ {[%clk 0:00:00.5]} 39. Kd2 {[%clk 0:00:06.6]} 39... Rb2+ {[%clk 0:00:00.4]} 40. Kd3 {[%clk 0:00:06.2]} 1-0